Cogmind - Beta 17 @@@ ROGUE MODE // 2026.07.24 @ 18:11:47 Player: naththebg Result: Self-destructed Performance ------------- Evolutions (6) 3000 Regions Visited (19) 3800 Robots Destroyed (374) 1870 Value Destroyed (16944) 16944 Prototype IDs (60) 1200 Alien Tech Used (0) 0 Bonus (28235) 28235 TOTAL SCORE: 55049 Bonus ------- High Alert Combat Kills 4003 Follower Combat Kills 2084 Prayed to X0-1V1 5000 Major X0-1V1 Interference 13350 Entered Garrisons 1000 Used RIF Installer 2000 Network Hubs Disabled 200 Aligned with FarCom 300 Met R17 at Cetus 500 Friendly Fire -202 Cogmind --------- Core Integrity 566/940 Matter 95/300 Energy 1339/1350 System Corruption 27% Temperature Cool (20) Movement Core (2350) Ox46 Location -4/Garrison Parts ------- > --- POWER (2) -------- Hybrid Antimatter Reactor Quantum Reactor > --- PROPULSION (5) --- Centrium Heavy Treads > --- UTILITY (10) ----- Advanced Heat Sink Huge Storage Unit Centrium Medium Armor Plating > --- WEAPON (2) ------- Heavy Mass Driver > --- INVENTORY (26) --- Quantum Reactor Superbattery (1500) High-capacity Matter Pod (0) Weapon Mount Quantum Capacitor Advanced Remote Force Field Relay Coupler [NC] (24) Relay Coupler [NC] (24) Relay Coupler [NC] (27) Relay Coupler [Swarmer] (99) Relay Coupler [Sentry] (99) Cooled Phase Cannon Improved Matter Neutralizer Peak State ------------ > --- POWER ------------ Quantum Reactor Quantum Reactor > --- PROPULSION ------- Centrium Heavy Treads Centrium Heavy Treads > --- UTILITY ---------- Improved Cooling System Huge Storage Unit Advanced Phase Shifter Centrium Medium Armor Plating Centrium Heavy Armor Plating Ghost Barrier Relay Coupler [Grunt] X0-1V1's Piety Tracker > --- WEAPON ----------- Improved Matter Neutralizer Heavy Mass Driver Heavy Mass Driver > --- INVENTORY -------- Quantum Reactor Armored Medium Treads Centrium Heavy Treads Centrium Heavy Treads Advanced Cryofiber Web Advanced Heat Sink Superbattery High-capacity Matter Pod Weapon Mount Heavy Servo Lattice Launcher Loader Improved Utility Shielding Centrium Medium Armor Plating Relay Coupler [NC] Relay Coupler [NC] Relay Coupler [Swarmer] Relay Coupler [Sentry] Cooled Phase Cannon Heavy Mass Driver Heavy Mass Driver [Rating: 167] Favorites ----------- Power Cooled Deuterium Engine Engine Cooled Deuterium Engine Power Core Reinforced Fission Core Reactor Quantum Reactor Propulsion Light Treads Treads Light Treads Leg Aluminum Leg Wheel Armored Huge Wheel Utility Huge Storage Unit Device X0-1V1's Piety Tracker Storage Huge Storage Unit Processor Makeshift Salvage Targeting Computer Hackware Relay Coupler [Grunt] Protection Hardened Heavy Armor Plating Weapon Gatling Laser Energy Gun Gatling Laser Energy Cannon Cooled Phase Cannon Ballistic Gun Enhanced Autogun Ballistic Cannon Light Antimatter Cannon Launcher Grenade Launcher Special Weapon Remote Datajack Build | -11 -10 -10 -10 -9 -8 -8 -8 -8 -7 -7 -6 -6 -6 -6 -6 -5 -5 -4 -4 ------- Run | Yrd Mat Min Exi Min Mat Gar Mat Gar Fac Gar Fac Ext Cet Arc Hub Fac Gar Fac Gar Slots Evolved 12 | . . . . . 4 . . . 2 . 2 . . . . 2 . 2 . Power . | . . . . . . . . . . . . . . . . . . . . Propulsion 3 | . . . . . 1 . . . . . 1 . . . . 1 . . . Utility 8 | . . . . . 2 . . . 2 . 1 . . . . 1 . 2 . Weapon 1 | . . . . . 1 . . . . . . . . . . . . . . Parts Attached 167 | 8 2 2 . 1 21 7 14 3 13 1 45 9 13 . 3 4 8 10 3 Power 20 | 1 . . . . 3 . 1 . 1 . 6 1 2 . 1 . 2 2 . Engine 8 | 1 . . . . 2 . 1 . 1 . 2 . . . 1 . . . . Core 6 | . . . . . 1 . . . . . 4 1 . . . . . . . Reactor 6 | . . . . . . . . . . . . . 2 . . . 2 2 . Propulsion 31 | 4 . . . . 4 3 2 . 2 . 5 5 3 . 1 . . 1 1 Treads 17 | 2 . . . . 4 3 . . . . 2 . 3 . 1 . . 1 1 Leg 2 | 2 . . . . . . . . . . . . . . . . . . . Wheel 12 | . . . . . . . 2 . 2 . 3 5 . . . . . . . Hover . | . . . . . . . . . . . . . . . . . . . . Flight . | . . . . . . . . . . . . . . . . . . . . Utility 67 | 1 2 . . . 6 1 6 2 8 . 20 3 4 . 1 3 3 6 1 Device 30 | . 1 . . . 3 . 4 2 4 . 8 2 1 . . 1 2 1 1 Storage 4 | 1 1 . . . . 1 . . . . . . . . . . . 1 . Processor 3 | . . . . . . . . . . . 2 . . . 1 . . . . Hackware 9 | . . . . . . . . . 1 . 4 . . . . 1 1 2 . Protection 21 | . . . . . 3 . 2 . 3 . 6 1 3 . . 1 . 2 . Artifact . | . . . . . . . . . . . . . . . . . . . . Weapon 49 | 2 . 2 . 1 8 3 5 1 2 1 14 . 4 . . 1 3 1 1 Energy Gun 11 | . . . . . . . 4 1 1 . 3 . 1 . . 1 . . . Energy Cannon 9 | . . . . . . 1 1 . . . 4 . 2 . . . 1 . . Ballistic Gun 12 | 2 . 1 . . 7 1 . . . . . . 1 . . . . . . Ballistic Cannon 12 | . . . . 1 . 1 . . . 1 5 . . . . . 2 1 1 Launcher 3 | . . 1 . . 1 . . . . . 1 . . . . . . . . Special Weapon 2 | . . . . . . . . . 1 . 1 . . . . . . . . Impact Weapon . | . . . . . . . . . . . . . . . . . . . . Slashing Weapon . | . . . . . . . . . . . . . . . . . . . . Piercing Weapon . | . . . . . . . . . . . . . . . . . . . . Special Melee Weapon . | . . . . . . . . . . . . . . . . . . . . Unidentified Prototypes 24 | . 1 . . . 3 . 2 . 1 . 8 . 4 . . 4 . 1 . Parts Lost 52 | . . . . . 1 1 4 1 3 . 20 1 4 . 2 1 1 1 12 Power 8 | . . . . . . . . . . . 6 . 1 . 1 . . . . Propulsion 8 | . . . . . . . . . . . 4 1 1 . . . . . 2 Utility 29 | . . . . . 1 . 1 . 3 . 10 . 2 . 1 . 1 1 9 Weapon 7 | . . . . . . 1 3 1 . . . . . . . 1 . . 1 Highest Loss Streak 6 | . . . . . 1 1 2 1 1 . 5 1 2 . 1 1 1 1 6 To Critical Strikes 2 | . . . . . . . . . . . 2 . . . . . . . . Average Backups 20 | 4 8 9 11 14 13 14 23 22 23 22 23 22 22 22 21 22 21 20 18 Power . | . 1 1 1 . . . 1 1 . . . 1 1 2 2 2 1 1 1 Propulsion 2 | 2 4 4 4 3 2 3 2 2 3 3 1 . 1 3 3 3 2 1 . Utility 11 | . . 1 3 5 7 7 13 14 12 11 12 12 11 10 10 11 12 13 13 Weapon 5 | . 2 3 3 3 3 4 5 4 5 6 7 6 5 5 5 5 3 4 3 Tool/Special . | . . . . . . . . . . . . . . . . . . . . Unused Backups 58 | . . . . 6 12 5 5 1 5 2 4 2 2 . . . 3 2 9 Power 1 | . . . . . . . . . 1 . . . . . . . . . . Propulsion 9 | . . . . 4 2 . 1 . 1 . . . . . . . . 1 . Utility 28 | . . . . 1 4 1 3 1 3 . 2 1 1 . . . 1 1 9 Weapon 17 | . . . . 1 6 4 1 . . 2 . 1 . . . . 2 . . Tool/Special 3 | . . . . . . . . . . . 2 . 1 . . . . . . Average Slot Usage (%) 83 | . 88 100 100 100 94 89 81 80 83 92 79 77 82 93 90 80 72 75 65 Engine 4 | . 14 14 14 14 3 . 6 9 7 15 4 . . . 1 5 . . . Core 3 | . . . . . 5 9 2 . . . 6 11 1 . . . . . . Reactor 2 | . . . . . . . . . . . . . 10 13 10 5 6 8 10 Treads 8 | . 24 28 28 28 25 27 . . . . 2 . 4 6 7 10 10 10 9 Wheel 7 | . . . . . . . 17 18 10 7 12 15 10 6 4 . . . . Device 14 | . 2 14 14 14 16 9 9 9 22 23 14 9 17 26 23 16 16 14 11 Storage 7 | . 14 14 14 14 9 9 9 9 7 7 6 6 6 6 6 5 5 5 5 Hackware 4 | . . . . . . . . . 2 7 6 13 6 6 6 8 10 16 11 Protection 8 | . . . . . 7 9 9 8 7 7 9 5 10 13 13 11 9 13 9 Energy Gun 6 | . . . . . . . 14 24 22 21 2 . . . . 2 . . . Energy Cannon 2 | . . . . . . 2 2 2 . . . . 9 13 10 6 7 . . Ballistic Gun 6 | . 28 22 28 14 24 23 9 . . . . . . . . . . . . Ballistic Cannon 3 | . . . . 7 2 . . . . 1 7 6 . . . . 3 4 4 Peak Build Rating 167 | 6 19 21 22 27 47 49 57 58 68 59 94 79 132 121 121 147 167 149 136 Average Rating 74 | 4 8 19 21 24 41 47 49 51 63 58 79 73 104 120 115 138 148 143 124 On Entrance 66 | . 6 19 21 22 27 47 49 49 49 55 59 79 75 121 121 105 144 146 136 Avg Prop Armor Cover (%) 4 | . . . . . . . . . . . 3 . 10 8 8 . . . . Naked Turns . | . . . . . . . . . . . . . . . . . . . . Heaviest Build 207 | 11 27 29 27 33 56 116 129 128 137 134 176 159 189 163 163 167 207 177 176 Greatest Support 160 | 40 40 40 40 40 60 60 60 40 40 28 56 54 160 80 100 160 160 160 150 Greatest Overweight (x) 10 | 1 . . . . . 1 3 3 4 4 6 5 10 10 10 1 1 1 1 Average Overweight (x) 2 | . . . . . . . 2 3 3 4 3 3 4 9 6 . . . 1 Largest Inventory Capacity 26 | 8 15 15 15 15 15 26 26 26 26 26 26 26 26 26 26 26 26 26 26 Average Capacity 23 | 7 14 15 15 15 15 16 25 26 26 26 26 26 26 26 26 26 26 26 26 Most Carried 26 | 6 9 11 13 15 15 22 26 26 26 26 26 26 26 26 26 26 26 26 26 Average Carried 22 | 4 8 9 11 14 14 16 25 24 25 25 24 25 25 26 25 25 25 24 22 Final Capacity 26 | 8 15 15 15 15 15 26 26 26 26 26 26 26 26 26 26 26 26 26 26 Final Carried 26 | 6 9 11 13 15 15 22 25 26 26 26 25 26 26 26 25 25 26 25 14 Class Distribution -------------------- 19% | Bothacker-Mutant 19% | Hauler-Skirmisher 9% | Skirmisher 8% | Hauler-Mutant 8% | Mutant 8% | Scavenger-Mutant 7% | Bothacker-Tank 5% | Bothacker-Skirmisher 3% | Scavenger-Skirmisher 3% | Hacker-Mutant Dominant Class ---------------- Mutant | -10/Materials Mutant | -10/Mines Mutant | -10/Exiles Mutant | -9/Mines Scavenger-Skirmisher | -8/Materials Skirmisher | -8/Garrison Hauler-Skirmisher | -8/Materials Hauler-Skirmisher | -8/Garrison Hauler-Skirmisher | -7/Factory Bothacker-Tank | -7/Garrison Bothacker-Mutant | -6/Factory Commander-Mutant | -6/Extension Scavenger-Mutant | -6/Cetus Scavenger-Mutant | -6/Archives Scavenger-Mutant | -6/Hub_04(d) Scavenger-Mutant | -5/Factory Hauler-Mutant | -5/Garrison Hauler-Mutant | -4/Factory Hacker-Mutant | -4/Garrison Resources | -11 -10 -10 -10 -9 -8 -8 -8 -8 -7 -7 -6 -6 -6 -6 -6 -5 -5 -4 -4 ----------- Run | Yrd Mat Min Exi Min Mat Gar Mat Gar Fac Gar Fac Ext Cet Arc Hub Fac Gar Fac Gar Matter Collected 12081 | 194 48 176 200 264 1057 708 612 163 417 424 3127 1327 746 163 232 . 708 718 797 Remotely . | . . . . . . . . . . . . . . . . . . . . Salvage Created 14755 | . 48 140 . . 1089 1097 1687 1211 956 666 2153 932 637 371 778 215 1476 893 406 Parts 663 | . 5 6 . . 63 64 82 60 25 11 119 38 26 18 39 8 54 32 13 Haulers Intercepted 12 | . . . . . 5 . 5 . . . 1 . . . . . . 1 . Recyclers Shooed 4 | . . . . . 1 . . . . . 3 . . . . . . . . Parts Field Recycled 18 | . . . . . . . . . . . 18 . . . . . . . . Retrieved Matter 682 | . . . . . . . . . . . 682 . . . . . . . . Parts Self-Destructed . | . . . . . . . . . . . . . . . . . . . . Prevented . | . . . . . . . . . . . . . . . . . . . . Parts Restored . | . . . . . . . . . . . . . . . . . . . . Kills | -11 -10 -10 -10 -9 -8 -8 -8 -8 -7 -7 -6 -6 -6 -6 -6 -5 -5 -4 -4 ------- Run | Yrd Mat Min Exi Min Mat Gar Mat Gar Fac Gar Fac Ext Cet Arc Hub Fac Gar Fac Gar Combat Hostiles Destroyed 327 | . 3 4 . . 14 26 26 28 29 11 56 24 7 4 9 5 27 14 40 Melee 1 | . . . . . . . . . . . . . . . . . . . 1 Guns 113 | . 3 1 . . 10 17 23 22 25 10 2 . . . . . . . . Cannons 142 | . . . . . 2 . 2 5 1 . 34 5 4 3 6 5 27 14 34 AOE 63 | . . 3 . . 2 9 1 . 2 . 19 19 . . 3 . . . 5 Classes Destroyed 23 | . 1 2 . . 6 1 4 1 1 1 2 1 . . . . 1 1 1 Worker 19 | . . . . . . . 2 . 1 . 8 1 . . 5 . . 2 . Builder 11 | . . . . . . . 2 . . . 6 3 . . . . . . . Tunneler 4 | . . 1 . . . . . . . . 3 . . . . . . . . Hauler 12 | . . . . . 5 . 5 . . . 1 . . . . . . 1 . Recycler 11 | . . . . . 2 . 2 . 1 . 3 1 . . 1 . . 1 . Mechanic 8 | . . . . . 1 . 2 . . . 3 2 . . . . . . . Operator 2 | . . . . . . . . . . . 1 . . 1 . . . . . Drone 1 | . . . . . . . . . . . . . . . . . . . 1 Watcher 22 | . . . . . 5 . 5 1 1 . 2 . 2 . 3 . . 3 . Swarmer 43 | . 3 . . . 2 8 4 3 2 . 13 1 . . . 3 4 . . Saboteur 2 | . . . . . . . . . . . 1 1 . . . . . . . Grunt 102 | . . 4 . . 2 9 11 8 10 6 10 11 . . 5 . 13 9 4 Brawler 16 | . . . . . . . . 6 1 2 3 1 . . . 1 1 . 1 Duelist 14 | . . . . . . . 1 1 . . 6 4 . . . 1 1 . . Protector 2 | . . . . . . . . . . . . 2 . . . . . . . Sentry 37 | . . . . . 5 7 6 5 1 . 4 . . 4 1 . 2 1 1 Demolisher 1 | . . . . . . 1 . . . . . . . . . . . . . Specialist 6 | . . . . . . . . . . 1 1 1 . . . . 3 . . Hunter 24 | . . . . . 5 1 3 . . 2 13 . . . . . . . . Programmer 25 | . . . . . . . 1 5 3 . 6 2 . . 3 . 1 4 . Heavy 1 | . . . . . . . . . . . . . . . . . . 1 . Behemoth 2 | . . . . . . . . . . . . . . . . . 2 . . Cetus Guard 7 | . . . . . . . . . . . . . 7 . . . . . . Assembled 46 | . . . . . . . . . 13 . . . . . . . . . 33 Thug 2 | . . . . . . . . . . . . 1 1 . . . . . . Guerrilla 1 | . . . . . . . . . . . . 1 . . . . . . . Best Kill Streak 14 | . 3 2 . . 3 6 5 4 13 3 11 13 3 2 6 5 12 5 14 Combat Bots Only 14 | . 3 2 . . 3 6 4 4 13 3 7 8 3 1 2 5 12 5 14 Max Kills in Single Turn 6 | . 1 1 . . 2 4 2 3 2 1 4 4 2 1 6 1 2 1 4 Gunslinging 2 | . . . . . . 1 . 2 1 . . . . . . . . . . Exploded 4 | . . 1 . . 2 4 1 . 2 . 4 4 . . 2 . . . 4 Melee 1 | . . . . . . . . . . . . . . . . . . . 1 Uniques/NPCs Destroyed . | . . . . . . . . . . . . . . . . . . . . Combat | -11 -10 -10 -10 -9 -8 -8 -8 -8 -7 -7 -6 -6 -6 -6 -6 -5 -5 -4 -4 -------- Run | Yrd Mat Min Exi Min Mat Gar Mat Gar Fac Gar Fac Ext Cet Arc Hub Fac Gar Fac Gar Hostile Shots Fired 1881 | . 15 9 . . 66 98 85 35 71 58 550 50 66 23 60 25 126 141 403 Missed 556 | . 3 3 . . 16 22 19 7 28 17 169 15 23 6 24 6 29 48 121 Hits 1325 | . 12 6 . . 50 76 66 28 43 41 381 35 43 17 36 19 97 93 282 Melee 69 | . . . . . . . . . 3 . 13 . . . . 5 1 . 47 Projectile 1256 | . 12 6 . . 50 76 66 28 40 41 368 35 43 17 36 14 96 93 235 AOE 4 | . . . . . . 3 . . . . . 1 . . . . . . . Critical Strikes 58 | . . . . . 3 1 4 2 2 . 11 2 7 1 1 3 2 10 9 Actively Blocked 1 | . . . . . . . . . . . . . . . . . . . 1 Part Disruptions 3 | . . . . . . . . . . . . . . . . . . . 3 Damage Taken 21693 | . 91 92 . 20 842 1145 1019 487 522 222 5343 586 1173 330 641 368 1871 2268 4673 Core 1574 | . 27 25 . 10 106 64 101 88 59 14 464 33 . . 58 . 151 96 278 Absorbed by Shields 795 | . . . . . . . . 9 94 224 367 . . . . . 101 . . Reduced by Siege Mode 693 | . . . . . . . . . . . . . . 21 . . 114 203 355 Redirected to Shielding 151 | . . . . . . . . . . . . . . . . . . 31 120 Ignored by Resistances 1064 | . . . . . 25 . . . . . 856 25 . 87 10 9 52 . . Regen/Repaired (Parts) 2383 | . . . . . . . 529 . . . 445 . . . . . . 1409 . Core Remaining (%) 72 | 100 . . . 94 . . . 41 . 85 . . . . 37 . 80 . . Volleys Fired 1040 | . 6 11 . 4 68 99 74 54 52 26 237 75 29 22 35 23 61 77 87 Largest 3 | . 2 2 . 1 3 3 3 3 3 3 3 1 2 2 2 2 3 1 1 Hottest 240 | . 40 40 . 20 93 75 240 240 240 240 240 51 80 80 80 80 130 65 65 Shots Fired 1797 | . 12 17 . 4 189 187 201 108 114 63 360 75 57 38 47 27 138 77 83 Gun 767 | . 12 12 . 4 166 135 182 85 95 58 18 . . . . . . . . Cannon 916 | . . . . . 20 44 17 23 15 4 306 29 57 38 46 19 138 77 83 Launcher 41 | . . 5 . . 3 8 2 . . . 9 14 . . . . . . . Special 73 | . . . . . . . . . 4 1 27 32 . . 1 8 . . . Kinetic 945 | . 12 12 . 4 186 136 89 . 4 3 297 29 . . . . 13 77 83 Thermal 738 | . . . . . . 43 110 108 106 59 27 . 57 38 46 19 125 . . Explosive 41 | . . 5 . . 3 8 2 . . . 9 14 . . . . . . . Electromagnetic . | . . . . . . . . . . . . . . . . . . . . Robot Hit Streak 42 | . 4 12 . 13 11 40 23 20 30 42 27 16 20 29 9 17 41 28 15 Robot Miss Streak 7 | . 1 1 . 1 6 4 4 3 4 1 7 2 2 1 3 1 1 2 3 Penetration Max 1 | . . . . . 1 . . . . . 1 . . . . . 1 1 1 Secondary Targets 26 | . . . . . 2 5 1 4 7 1 . . . . . . 6 . . Max Gunslinging Chain 2 | . . . . . 1 1 1 2 2 1 . . . . . . 1 . . Shots Hit Robots 1234 | . 8 15 . 2 115 116 139 73 77 52 220 56 45 35 24 25 106 64 62 Core Hits 739 | . 4 12 . . 45 60 89 58 73 46 117 84 17 7 21 7 45 24 30 Critical Kills 6 | . . . . . 1 . 1 . . . 1 . 3 . . . . . . Critical Parts Destroyed . | . . . . . . . . . . . . . . . . . . . . Critical Strikes 43 | . . . . . 4 . 1 . . . 18 4 3 . . . . 5 8 Meltdown 4 | . . . . . . . . . . . 1 . 3 . . . . . . Destroy 2 | . . . . . 1 . 1 . . . . . . . . . . . . Blast 37 | . . . . . 3 . . . . . 17 4 . . . . . 5 8 Melee Attacks . | . . . . . . . . . . . . . . . . . . . . Impact . | . . . . . . . . . . . . . . . . . . . . Slashing . | . . . . . . . . . . . . . . . . . . . . Piercing . | . . . . . . . . . . . . . . . . . . . . Sneak Attacks . | . . . . . . . . . . . . . . . . . . . . Combat Hostiles . | . . . . . . . . . . . . . . . . . . . . Follow-up Attacks . | . . . . . . . . . . . . . . . . . . . . Damage Inflicted 49351 | . 85 351 . 23 2520 3168 3386 1826 2294 1495 10524 5197 1741 1030 1648 619 4416 4734 4294 Guns 11187 | . 85 123 . 23 1842 1366 2562 1556 1832 1495 303 . . . . . . . . Cannons 26683 | . . . . . 292 841 256 270 155 . 6411 906 1741 1030 925 619 4396 4729 4112 Explosions 11320 | . . 204 . . 366 961 568 . 307 . 3784 4291 . . 713 . . . 126 Melee . | . . . . . . . . . . . . . . . . . . . . Ramming 161 | . . 24 . . 20 . . . . . 26 . . . 10 . 20 5 56 Kinetic 21335 | . 85 123 . 23 2134 1366 1000 . . . 6228 906 . . . . 629 4729 4112 Thermal 17827 | . . . . . . 841 1818 1826 2294 1495 1471 . 1741 1030 925 619 3767 . . Explosive 9189 | . . 204 . . 366 961 568 . . . 2799 4291 . . . . . . . Electromagnetic 839 | . . . . . . . . . . . . . . . 713 . . . 126 Impact . | . . . . . . . . . . . . . . . . . . . . Slashing . | . . . . . . . . . . . . . . . . . . . . Piercing . | . . . . . . . . . . . . . . . . . . . . Highest Corruption 54 | . . 2 . . 3 . 1 1 7 . 18 18 36 54 54 . 1 5 27 Average Corruption 15 | . . 2 . . 2 . 1 1 5 . 15 18 34 51 54 . 1 4 18 Corruption Purged . | . . . . . . . . . . . . . . . . . . . . Corruption Blocked . | . . . . . . . . . . . . . . . . . . . . Effects 362 | . . . . . 15 . 1 11 19 . 93 52 37 21 50 . 8 22 33 Message Errors 71 | . . . . . 1 . . 2 2 . 21 10 9 3 10 . 2 5 6 Matter Fused 87 | . . . . . 5 . . 2 6 . 19 11 9 4 14 . . 8 9 Heat Flow Errors 57 | . . . . . 1 . . 2 5 . 12 11 4 4 7 . 2 3 6 Energy Discharges 33 | . . . . . 2 . . 1 1 . 7 7 2 . 7 . 1 3 2 Parts Rejected 8 | . . . . . . . . . . . 3 . . 2 1 . . . 2 Parts Fused 5 | . . . . . 1 . . . . . 1 1 . 1 1 . . . . Data Loss (minor) 45 | . . . . . 1 . . 2 4 . 10 9 7 1 4 . 3 1 3 Data Loss (major) 13 | . . . . . 2 . 1 1 . . 5 . 1 1 1 . . . 1 Misfires 13 | . . . . . 1 . . . 1 . 8 1 1 . 1 . . . . Alerts 7 | . . . . . . . . . . . 1 . 2 . 2 . . 2 . Misdirections 4 | . . . . . . . . . . . 3 . . . 1 . . . . Weapon Failures 19 | . . . . . 1 . . 1 . . 3 2 2 5 1 . . . 4 Overload Shots 2 | . . . . . . . . . 2 . . . . . . . . . . Overflow Damage 2154 | . . . . . . 13 60 . 114 . 529 134 25 15 94 21 79 515 555 Projectiles 1543 | . . . . . . . 39 . 17 . 235 42 25 15 . 21 79 515 555 Explosions 611 | . . . . . . 13 21 . 97 . 294 92 . . 94 . . . . Melee . | . . . . . . . . . . . . . . . . . . . . Knockbacks 123 | . . . . . 4 . . . . . 59 3 . . . . 9 30 18 Impact . | . . . . . . . . . . . . . . . . . . . . Kinetic 107 | . . . . . 4 . . . . . 54 3 . . . . 5 26 15 Secondary 16 | . . . . . . . . . . . 5 . . . . . 4 4 3 Self-Inflicted Damage 643 | . . 9 . . . . 17 . . . 487 1 . . 101 . . . 28 Shots 13 | . . 2 . . . . 2 . . . 6 1 . . 1 . . . 1 Rammed 18 | . . 6 . . 3 . . . . . 1 . . . 1 . 2 1 4 Targets Rammed 19 | . . 6 . . 3 . . . . . 1 . . . 1 . 2 1 5 Kicked . | . . . . . . . . . . . . . . . . . . . . Crushed 1 | . . . . . . . . . . . . . . . . . . . 1 Highest Temperature 456 | . . 15 . . 262 324 320 332 192 80 456 280 169 207 182 . 150 176 378 Average Temperature 99 | . . 9 . . 97 116 72 105 61 37 109 93 41 90 83 . 39 46 163 Received Heat Transfer 3510 | . . 48 . 12 189 279 405 84 106 66 487 150 54 54 186 . 493 309 588 Effects 20 | . . . . . 1 1 1 . . . 14 . . . . . . . 3 Shutdowns 1 | . . . . . . . . . . . 1 . . . . . . . . Energy Bleed 6 | . . . . . 1 . 1 . . . 3 . . . . . . . 1 Interference 12 | . . . . . . 1 . . . . 9 . . . . . . . 2 Short Circuit 1 | . . . . . . . . . . . 1 . . . . . . . . Siege Activations 19 | . . . . . . . . . . . . . . 3 . 1 5 4 6 Total Turns 517 | . . . . . . . . . . . . . . 71 . 19 171 114 142 Longest Duration 117 | . . . . . . . . . . . . . . 34 . 19 117 44 49 Martial Activations . | . . . . . . . . . . . . . . . . . . . . Shielding Activations . | . . . . . . . . . . . . . . . . . . . . Robots Disrupted . | . . . . . . . . . . . . . . . . . . . . Combat Hostiles . | . . . . . . . . . . . . . . . . . . . . Robots Corrupted . | . . . . . . . . . . . . . . . . . . . . Combat Hostiles . | . . . . . . . . . . . . . . . . . . . . Parts Fried 3 | . . . . . . . . . . . . . . . 3 . . . . Impact Corruptions 3 | . . . . . . . . . . . . . . . . . 1 1 1 Robots Melted 9 | . . . . . . . . 1 1 2 1 . 3 1 . . . . . Combat Hostiles 8 | . . . . . . . . 1 1 1 1 . 3 1 . . . . . Parts Melted 51 | . . . . . . . 6 9 12 8 3 . 7 . . . 6 . . Heat Transferred 26298 | . . . . . . 1147 3908 3846 4360 3375 1448 . 1776 1073 925 629 3811 . . Parts Sabotaged 2 | . . . . . . . . . . . 2 . . . . . . . . Parts Stolen 1 | . . . . . . . . . . . . . . . . . . . 1 Parts Stripped . | . . . . . . . . . . . . . . . . . . . . Power Chain Reactions . | . . . . . . . . . . . . . . . . . . . . Alert | -11 -10 -10 -10 -9 -8 -8 -8 -8 -7 -7 -6 -6 -6 -6 -6 -5 -5 -4 -4 ------- Run | Yrd Mat Min Exi Min Mat Gar Mat Gar Fac Gar Fac Ext Cet Arc Hub Fac Gar Fac Gar Maximum Alert Level 5 | . . . . . . 3 2 4 3 3 5 4 3 1 1 . 3 2 2 Low Security (%) 26 | 100 100 100 . 100 100 17 . . . . 16 . . . 99 100 37 . . Level 1 8 | . . . . . . 18 3 . 3 18 17 . . 100 . . 5 . 18 Level 2 38 | . . . . . . 43 96 34 92 73 . 3 87 . . . 48 99 81 Level 3 15 | . . . . . . 20 . 52 3 7 23 89 12 . . . 8 . . Level 4 6 | . . . . . . . . 13 . . 22 6 . . . . . . . Level 5 4 | . . . . . . . . . . . 20 . . . . . . . . High Security . | . . . . . . . . . . . . . . . . . . . . Max Security . | . . . . . . . . . . . . . . . . . . . . Peak Influence 1687 | . 60 68 . 36 143 878 633 1210 740 711 1687 1244 733 265 287 140 858 567 499 Initial 826 | . . . . . . 78 427 406 634 302 373 826 686 249 70 140 49 450 324 Average 537 | . 13 11 . 1 34 484 494 808 544 525 940 916 613 239 18 85 403 483 432 Influence Increases 11053 | . 77 122 . 56 741 810 1211 814 607 409 2474 1108 379 81 518 110 819 487 230 Destroy 0b10 Robot/C 5290 | . 60 80 . 40 340 520 580 560 340 250 930 450 120 60 135 75 405 240 105 Destroy 0b10 Robot/NC 464 | . . 5 . . 65 15 95 5 15 4 124 60 8 4 36 . . 28 . Destroy Leader 888 | . 10 10 . 10 120 30 190 30 72 28 178 52 . . 54 16 24 56 8 Allied During Kill 546 | . . 3 . 6 14 . 11 16 27 29 105 295 25 . . 5 . 10 . Successful Hack 220 | . 7 . . . 12 14 49 28 50 . 17 21 . . . . 11 11 . Disable Machine 723 | . . . . . 30 . 15 . 30 . 372 24 . 12 144 12 24 48 12 Anti-Garrison Action 703 | . . . . . . 150 . 100 . 76 113 . . . . . 189 . 75 Destroy Structure 960 | . . 24 . . 40 51 35 60 13 10 262 81 10 5 113 2 142 82 30 Partial Spotted 15 | . . . . . 15 . . . . . . . . . . . . . . Lose Combat Pursuer 498 | . . . . . 105 30 120 15 60 12 84 . . . 36 . 24 12 . Miscellaneous 746 | . . . . . . . 116 . . . 289 125 216 . . . . . . Influence Decreases 10619 | . 77 115 7 56 621 52 1463 230 1385 130 1498 1569 982 504 431 327 31 882 259 Entered New Map 4384 | . . . 7 . . 42 451 220 576 130 338 861 540 374 130 147 21 408 139 Time Decay 4414 | . 77 111 . 36 394 . 632 . 589 . 770 458 342 130 281 130 . 464 . Lost Part 520 | . . . . . 10 10 40 10 30 . 200 10 40 . 20 10 10 10 120 Lost Ally 734 | . . 4 . 20 100 . 40 . 40 . 190 240 60 . . 40 . . . Purge Threat 567 | . . . . . 117 . 300 . 150 . . . . . . . . . . Squads Dispatched 73 | . . . . 1 11 . 7 . 6 . 29 8 . . 5 1 . 5 . Investigation 11 | . . . . 1 2 . 3 . . . 4 1 . . . . . . . Extermination 16 | . . . . . . . . . 3 . 9 . . . 2 . . 2 . Reinforcement 17 | . . . . . 3 . . . 2 . 5 2 . . 3 . . 2 . Assault 20 | . . . . . . . 4 . . . 10 5 . . . . . 1 . Garrison 9 | . . . . . 6 . . . 1 . 1 . . . . 1 . . . Intercept . | . . . . . . . . . . . . . . . . . . . . Searches Triggered . | . . . . . . . . . . . . . . . . . . . . Construction Impeded 2 | . . . . . . . . . . . 1 1 . . . . . . . Haulers Reinforced 1 | . . . . . . . . . . . 1 . . . . . . . . Active Scanning Responses . | . . . . . . . . . . . . . . . . . . . . Cargo Convoy Interrupts 1 | . . . . . . . . . . . 1 . . . . . . . . Alert ID Control Effect 23 | . . . . . . . . . . 1 8 12 . . . 2 . . . Stealth | -11 -10 -10 -10 -9 -8 -8 -8 -8 -7 -7 -6 -6 -6 -6 -6 -5 -5 -4 -4 --------- Run | Yrd Mat Min Exi Min Mat Gar Mat Gar Fac Gar Fac Ext Cet Arc Hub Fac Gar Fac Gar Distress Signals 23 | . . . . . 2 . 2 . 1 . 2 6 2 . 4 . . 3 1 Communications Jammed . | . . . . . . . . . . . . . . . . . . . . Distress Signals . | . . . . . . . . . . . . . . . . . . . . Times Spotted 556 | . 5 5 . 2 35 30 47 26 46 14 122 55 10 1 21 7 31 26 73 Peak Tracking Total 14 | . 3 2 . 1 6 5 5 6 6 4 7 11 5 1 6 6 7 6 14 Tactical Retreats 28 | . . . . . 3 1 5 1 3 1 6 . . . 2 . 1 1 4 Traps | -11 -10 -10 -10 -9 -8 -8 -8 -8 -7 -7 -6 -6 -6 -6 -6 -5 -5 -4 -4 ------- Run | Yrd Mat Min Exi Min Mat Gar Mat Gar Fac Gar Fac Ext Cet Arc Hub Fac Gar Fac Gar Traps Triggered 46 | . . . . . 4 6 4 13 3 4 3 . . . 2 . 6 . 1 Indirectly . | . . . . . . . . . . . . . . . . . . . . Trap Hack Attempts . | . . . . . . . . . . . . . . . . . . . . Triggered . | . . . . . . . . . . . . . . . . . . . . Disarmed . | . . . . . . . . . . . . . . . . . . . . Reprogrammed . | . . . . . . . . . . . . . . . . . . . . Reused . | . . . . . . . . . . . . . . . . . . . . Traps Extracted . | . . . . . . . . . . . . . . . . . . . . Installed 1 | . . . . . . . . . . . . . . . . . . . 1 Triggered . | . . . . . . . . . . . . . . . . . . . . Machines | -11 -10 -10 -10 -9 -8 -8 -8 -8 -7 -7 -6 -6 -6 -6 -6 -5 -5 -4 -4 ---------- Run | Yrd Mat Min Exi Min Mat Gar Mat Gar Fac Gar Fac Ext Cet Arc Hub Fac Gar Fac Gar Machines Disabled 70 | . . . . . 2 2 1 . 2 2 32 2 . 1 12 1 7 4 2 Max in Single Turn 10 | . . . . . 1 1 1 . 1 1 6 1 . 1 10 1 2 3 1 Garrison Access 3 | . . . . . . . . . 2 . 1 . . . . . . . . Garrison Relay 5 | . . . . . . 1 . . . 2 . . . . . . 2 . . Phase Generator 1 | . . . . . . . . . . . . . . . . . 1 . . Network Hub 1 | . . . . . . . . . . . . . . . 1 . . . . Energy Cycler 1 | . . . . . . . . . . . . 1 . . . . . . . Machines Repaired . | . . . . . . . . . . . . . . . . . . . . Machines Dismantled . | . . . . . . . . . . . . . . . . . . . . Machines Sabotaged . | . . . . . . . . . . . . . . . . . . . . Overloaded Fab Kills . | . . . . . . . . . . . . . . . . . . . . Hacking | -11 -10 -10 -10 -9 -8 -8 -8 -8 -7 -7 -6 -6 -6 -6 -6 -5 -5 -4 -4 --------- Run | Yrd Mat Min Exi Min Mat Gar Mat Gar Fac Gar Fac Ext Cet Arc Hub Fac Gar Fac Gar Machines Accessed 72 | . 1 . 2 2 7 4 10 2 15 2 15 1 . . 3 3 2 3 . Terminals 38 | . 1 . . . 4 4 5 2 6 2 7 1 . . 3 1 2 . . Fabricators 4 | . . . . . . . . . 2 . 1 . . . . . . 1 . Repair Stations 3 | . . . . . . . 1 . . . 1 . . . . . . 1 . Recycling Units 7 | . . . . . 2 . 1 . . . 3 . . . . 1 . . . Scanalyzers 9 | . . . . . . . 2 . 4 . 3 . . . . . . . . Garrison Access 7 | . . . . . 1 . 1 . 3 . . . . . . 1 . 1 . Total Hacks 159 | . 3 . 5 2 20 9 30 3 28 2 28 2 . . 6 6 7 8 . Successful 71 | . 2 . 5 2 10 1 18 2 14 2 6 1 . . . 1 2 5 . Failed 85 | . 1 . . . 10 8 11 1 13 . 21 1 . . 6 5 5 3 . Catastrophic 22 | . . . . . . 3 4 1 1 . 4 1 . . 2 2 2 2 . Database Lockouts 3 | . . . . . . . 1 . 1 . 1 . . . . . . . . Manual 42 | . 1 . 1 . 3 . 10 1 9 . 3 1 . . 5 3 5 . . Terminals 93 | . 3 . . . 15 9 19 3 12 2 12 2 . . 6 3 7 . . Fabricators 6 | . . . . . . . . . 3 . 2 . . . . . . 1 . Repair Stations 11 | . . . . . . . 2 . . . 3 . . . . . . 6 . Recycling Units 11 | . . . . . 3 . 1 . . . 5 . . . . 2 . . . Scanalyzers 22 | . . . . . . . 6 . 10 . 6 . . . . . . . . Garrison Access 9 | . . . . . 2 . 2 . 3 . . . . . . 1 . 1 . Terminal Hacks 31 | . 2 . 5 2 6 1 6 2 4 2 . . . . . . 1 . . Record 4 | . . . 4 . . . . . . . . . . . . . . . . Robot Analysis 1 | . . . . . 1 . . . . . . . . . . . . . . Prototype ID Bank 4 | . . . . . 2 . 1 . 1 . . . . . . . . . . Open Door 2 | . . . . 2 . . . . . . . . . . . . . . . Branch Access Points 1 | . 1 . . . . . . . . . . . . . . . . . . Emergency Access Points 2 | . . . . . . 1 . 1 . . . . . . . . . . . Repair Station Index 1 | . . . . . . . 1 . . . . . . . . . . . . Unreport Threat 4 | . . . . . 1 . 2 . 1 . . . . . . . . . . Locate Traps 2 | . 1 . . . . . . . 1 . . . . . . . . . . Transport Status 1 | . . . . . . . 1 . . . . . . . . . . . . Hauler Manifests 1 | . . . . . . . . . 1 . . . . . . . . . . Zone Layout 3 | . . . . . 2 . 1 . . . . . . . . . . . . Garrison Registry 2 | . . . . . . . . . . 1 . . . . . . 1 . . Patrol Navigation 1 | . . . . . . . . 1 . . . . . . . . . . . Security Stations 1 | . . . . . . . . . . 1 . . . . . . . . . Proto ID Catalog 1 | . . . 1 . . . . . . . . . . . . . . . . Fabricator Hacks 3 | . . . . . . . . . 1 . 1 . . . . . . 1 . Network Status 1 | . . . . . . . . . 1 . . . . . . . . . . Build 2 | . . . . . . . . . . . 1 . . . . . . 1 . Repair Station Hacks 6 | . . . . . . . 2 . . . 1 . . . . . . 3 . Scan Component 4 | . . . . . . . 1 . . . 1 . . . . . . 2 . Repair 2 | . . . . . . . 1 . . . . . . . . . . 1 . Recycling Unit Hacks 3 | . . . . . 2 . 1 . . . . . . . . . . . . Retrieve Components 3 | . . . . . 2 . 1 . . . . . . . . . . . . Scanalyzer 12 | . . . . . . . 5 . 4 . 3 . . . . . . . . Insert Component 3 | . . . . . . . 1 . 1 . 1 . . . . . . . . Analyze 2 | . . . . . . . 1 . . . 1 . . . . . . . . Retrieve Study 7 | . . . . . . . 3 . 3 . 1 . . . . . . . . Garrison Access Hacks 7 | . . . . . 1 . 1 . 3 . . . . . . 1 . 1 . Unlock Access 5 | . . . . . 1 . 1 . 1 . . . . . . 1 . 1 . Seal Access 2 | . . . . . . . . . 2 . . . . . . . . . . Unauthorized Hacks 9 | . . . . . 1 . 3 . 2 . 1 1 . . . . 1 . . Terminals 6 | . . . . . 1 . 2 . 1 . . 1 . . . . 1 . . Botnet 6 | . . . . . 1 . 2 . 1 . . 1 . . . . 1 . . Fabricators 1 | . . . . . . . . . 1 . . . . . . . . . . Report 1 | . . . . . . . . . 1 . . . . . . . . . . Repair Stations 1 | . . . . . . . . . . . 1 . . . . . . . . Patch 1 | . . . . . . . . . . . 1 . . . . . . . . Recycling Units . | . . . . . . . . . . . . . . . . . . . . Scanalyzers . | . . . . . . . . . . . . . . . . . . . . Garrison Access 1 | . . . . . . . 1 . . . . . . . . . . . . Restock 1 | . . . . . . . 1 . . . . . . . . . . . . Data Cores Recovered 1 | . . . . . . . . . . . 1 . . . . . . . . Used . | . . . . . . . . . . . . . . . . . . . . Hacking Detections 51 | . 1 . . . 7 3 6 1 11 . 14 1 . . 3 2 1 1 . Full Trace Events 1 | . . . . . . . . . . . 1 . . . . . . . . Feedback Events . | . . . . . . . . . . . . . . . . . . . . Feedback Blocked . | . . . . . . . . . . . . . . . . . . . . Robot Schematics Acquired . | . . . . . . . . . . . . . . . . . . . . Robots Built . | . . . . . . . . . . . . . . . . . . . . Authchips . | . . . . . . . . . . . . . . . . . . . . Time . | . . . . . . . . . . . . . . . . . . . . Total Robot Build Rating . | . . . . . . . . . . . . . . . . . . . . Part Schematics Acquired 2 | . . . . . . . 1 . . . 1 . . . . . . . . Parts Built 3 | . . . . . . . . . . . 2 . . . . . . 1 . Authchips . | . . . . . . . . . . . . . . . . . . . . Time 181 | . . . . . . . . . . . 117 . . . . . . 64 . Total Part Build Rating 22 | . . . . . . . . . . . 14 . . . . . . 8 . Part Studies Acquired 7 | . . . . . . . 3 . 3 . 1 . . . . . . . . Parts Repaired 2 | . . . . . . . 1 . . . . . . . . . . 1 . Time 86 | . . . . . . . 50 . . . . . . . . . . 36 . Parts Recycled . | . . . . . . . . . . . . . . . . . . . . Recycled Matter . | . . . . . . . . . . . . . . . . . . . . Retrieved Matter . | . . . . . . . . . . . . . . . . . . . . Retrieved Components 21 | . . . . . 11 . 10 . . . . . . . . . . . . Parts Scanalyzed 2 | . . . . . . . 1 . . . 1 . . . . . . . . Part Schematics Acquired 2 | . . . . . . . 1 . . . 1 . . . . . . . . Parts Damaged . | . . . . . . . . . . . . . . . . . . . . Bothacking | -11 -10 -10 -10 -9 -8 -8 -8 -8 -7 -7 -6 -6 -6 -6 -6 -5 -5 -4 -4 ------------ Run | Yrd Mat Min Exi Min Mat Gar Mat Gar Fac Gar Fac Ext Cet Arc Hub Fac Gar Fac Gar Used RIF Installer 4 | . . . . . . 1 . 1 . 1 . . . . . . 1 . . Code Merge 1 | . . . . . . . . . . . . . . . . . 1 . . Threat Obfuscator 1 | . . . . . . . . . . 1 . . . . . . . . . Robot Detection 1 | . . . . . . 1 . . . . . . . . . . . . . Alert ID Control 1 | . . . . . . . . 1 . . . . . . . . . . . Robots Hacked 30 | . . . . . . . . . 2 1 15 9 . . 1 2 . . . Non-combat 6 | . . . . . . . . . 1 . 2 1 . . . 2 . . . Combat 24 | . . . . . . . . . 1 1 13 8 . . 1 . . . . Robot Hacks Applied 33 | . . . . . . . . . 4 1 16 9 . . 1 2 . . . parse_system 3 | . . . . . . . . . 1 . . 2 . . . . . . . find_chute 3 | . . . . . . . . . 1 . . . . . . 2 . . . drop_inventory 1 | . . . . . . . . . . . 1 . . . . . . . . find_shortcuts 1 | . . . . . . . . . 1 . . . . . . . . . . find_garrison 3 | . . . . . . . . . 1 . 1 . . . 1 . . . . amplify_resonance 2 | . . . . . . . . . . . . 2 . . . . . . . reboot_system 1 | . . . . . . . . . . . 1 . . . . . . . . overwrite_iff 6 | . . . . . . . . . . 1 5 . . . . . . . . formatsys_low 1 | . . . . . . . . . . . 1 . . . . . . . . formatsys_high 12 | . . . . . . . . . . . 7 5 . . . . . . . Relay Couplers Released 33 | . . . . . . 5 3 . 1 9 2 . . . . . 13 . . Machine Destruction 26 | . . . . . . 5 . . 1 9 2 . . . . . 9 . . Programmers 7 | . . . . . . . 3 . . . . . . . . . 4 . . Attached 7 | . . . . . . . . . 1 . 4 . . . . . 1 1 . Fabnet Peak Effective % . | . . . . . . . . . . . . . . . . . . . . Robots Rewired 26 | . . . . . . 2 . 5 . 3 1 11 . . . 4 . . . Allies Hacked . | . . . . . . . . . . . . . . . . . . . . Hacks Repelled . | . . . . . . . . . . . . . . . . . . . . Allies | -11 -10 -10 -10 -9 -8 -8 -8 -8 -7 -7 -6 -6 -6 -6 -6 -5 -5 -4 -4 -------- Run | Yrd Mat Min Exi Min Mat Gar Mat Gar Fac Gar Fac Ext Cet Arc Hub Fac Gar Fac Gar Total Allies 68 | . . 6 . . 5 2 . 5 . 6 15 23 . . . 4 . 2 . Largest Group 15 | . . 4 3 3 4 2 2 5 4 5 5 15 4 . . 2 . 1 1 Highest-Rated Group 445 | . . 40 15 15 215 36 36 65 50 205 205 445 149 . . 59 . 99 99 Highest-Rated Ally 116 | . . 16 5 5 116 21 21 15 15 95 110 51 49 . . 30 . 99 99 Total Orders 3 | . . . . . 1 . . . . . 1 1 . . . . . . . AID 2 | . . . . . . . . . . . 1 1 . . . . . . . RETURN 1 | . . . . . 1 . . . . . . . . . . . . . . Ally Attacks 379 | . . 11 . 21 25 . 17 . 13 16 104 123 25 . . 17 . 7 . Total Damage 8240 | . . 82 . 108 337 . 406 . 229 585 2783 2765 565 . . 210 . 170 . Kills 69 | . . . . 2 3 . 4 . 3 5 19 28 1 . . 2 . 2 . Allies Corrupted 4 | . . . . . . . . . 1 . 3 . . . . . . . . Allies Melted 2 | . . . . . 1 . . . . . . 1 . . . . . . . X0-1V1 Amusement Gains 346 | . 13 . . . 10 . 40 10 53 . 47 61 . . 55 . 40 10 7 Good Acts 135 | . . 6 . 2 28 14 7 7 8 4 25 5 1 1 3 3 8 7 6 Bad Acts 107 | . . 5 . 2 8 5 3 5 6 1 34 6 6 2 6 2 2 2 12 Intel | -11 -10 -10 -10 -9 -8 -8 -8 -8 -7 -7 -6 -6 -6 -6 -6 -5 -5 -4 -4 ------- Run | Yrd Mat Min Exi Min Mat Gar Mat Gar Fac Gar Fac Ext Cet Arc Hub Fac Gar Fac Gar Active Infowar (turns) . | . . . . . . . . . . . . . . . . . . . . Robot Analysis Total 1 | . . . . . 1 . . . . . . . . . . . . . . Derelict Logs Recovered 6 | . . 3 . 3 . . . . . . . . . . . . . . . Drone Launches 1 | . . . . . 1 . . . . . . . . . . . . . . Drone Recoveries 1 | . . . . . 1 . . . . . . . . . . . . . . Exploration | -11 -10 -10 -10 -9 -8 -8 -8 -8 -7 -7 -6 -6 -6 -6 -6 -5 -5 -4 -4 ------------- Run | Yrd Mat Min Exi Min Mat Gar Mat Gar Fac Gar Fac Ext Cet Arc Hub Fac Gar Fac Gar Turns Passed 23713 | 66 315 627 381 678 1793 1471 2209 1481 1844 1092 5154 1156 766 275 906 278 1357 1176 688 Spaces Moved 11928 | 42 141 362 234 408 901 693 1369 741 1071 553 3031 663 188 63 323 114 504 392 135 Core 15 | 15 . . . . . . . . . . . . . . . . . . . Treads 4025 | 8 122 362 234 408 901 693 4 . . . . . 27 7 114 114 504 392 135 Legs 38 | 19 19 . . . . . . . . . . . . . . . . . . Wheels 7850 | . . . . . . . 1365 741 1071 553 3031 663 161 56 209 . . . . Hover . | . . . . . . . . . . . . . . . . . . . . Flight . | . . . . . . . . . . . . . . . . . . . . Fastest Speed 50 | 50 120 160 160 160 160 160 105 130 130 150 113 120 120 250 240 160 160 160 240 Average Speed 152 | 114 154 160 160 160 160 166 128 130 141 150 136 137 173 257 246 176 200 210 254 Slowest Speed 320 | 160 160 160 160 160 160 240 240 130 150 150 180 165 320 320 250 240 240 255 255 Overloaded Moves . | . . . . . . . . . . . . . . . . . . . . Propulsion Burnouts . | . . . . . . . . . . . . . . . . . . . . Robots Hopped . | . . . . . . . . . . . . . . . . . . . . Potential Cave-ins . | . . . . . . . . . . . . . . . . . . . . Cave-ins Triggered . | . . . . . . . . . . . . . . . . . . . . Exploration Rate (%) 55 | 3 26 78 62 88 72 91 75 82 31 46 68 88 56 70 42 5 73 9 41 Regions Visited 19 Branch Regions 7 Pre-discovered Areas 3 | . . 1 1 1 . . . . . . . . . . . . . . . Known Exits Taken 8 | . 1 . . 1 1 . 1 . 1 . . . . 1 . 1 . 1 . Unknown Exits Taken 7 | 1 . 1 1 . . . . . . . 1 1 1 . 1 . . . . Scrap Searched 3 | . . 1 . 2 . . . . . . . . . . . . . . . Spaces Dug 52 | . . . . . 5 . 1 . 5 . 26 3 . 1 3 . 7 . 1 Terrain Destroyed 932 | . . 29 . . 73 8 42 . 16 . 277 137 7 5 187 1 87 42 21 Melee . | . . . . . . . . . . . . . . . . . . . . Projectile 206 | . . . . . 15 . 8 . 5 . 90 5 7 5 14 1 15 20 21 AOE 726 | . . 29 . . 58 8 34 . 11 . 187 132 . . 173 . 72 22 . Terrain Rammed . | . . . . . . . . . . . . . . . . . . . . Walls Destroyed . | . . . . . . . . . . . . . . . . . . . . Machines Disabled . | . . . . . . . . . . . . . . . . . . . . Actions | -11 -10 -10 -10 -9 -8 -8 -8 -8 -7 -7 -6 -6 -6 -6 -6 -5 -5 -4 -4 --------- Run | Yrd Mat Min Exi Min Mat Gar Mat Gar Fac Gar Fac Ext Cet Arc Hub Fac Gar Fac Gar Total 15786 | 56 226 390 241 433 1135 907 1681 1148 1293 752 3716 848 572 133 384 168 734 627 342 Wait 1877 | . 73 8 6 2 91 56 164 207 104 109 297 72 293 47 14 9 116 124 85 Move 11911 | 41 140 361 233 407 900 692 1368 740 1071 552 3030 662 187 62 322 113 503 392 135 Hop . | . . . . . . . . . . . . . . . . . . . . Pick Up 174 | 7 2 2 2 9 18 11 24 6 14 4 35 4 12 . . 4 11 6 3 Fast Attach 103 | 5 2 . . 1 6 . 6 1 7 . 25 8 14 2 4 7 4 7 4 Attach 82 | 1 . . . . 4 2 6 1 9 1 22 3 10 . . 2 8 5 8 Detach 24 | . 1 . . . 1 1 2 . . . 5 . 5 . . 1 4 2 2 Swap 145 | 2 2 2 . 1 19 17 16 13 18 8 27 6 5 . 2 2 3 2 . Drop 190 | . . . . 9 25 8 21 3 18 3 36 11 17 . 2 7 15 11 4 Fire 1040 | . 6 11 . 4 68 99 74 54 52 26 237 75 29 22 35 23 61 77 87 Melee . | . . . . . . . . . . . . . . . . . . . . Ram 2 | . . . . . . . . . . . 1 . . . . . . . 1 Kick . | . . . . . . . . . . . . . . . . . . . . Crush 18 | . . 6 . . 3 . . . . . . . . . 1 . 2 1 5 Escape Stasis 126 | . . . . . . 4 . 80 . 31 . . . . 4 . 7 . . Rewire 93 | . . . . . . 17 . 43 . 18 1 7 . . . . . . 7 Trap 1 | . . . . . . . . . . . . . . . . . . . 1 Miscellaneous . | . . . . . . . . . . . . . . . . . . . . Route ------- -11/Scrapyard -10/Materials (discovered 2 exits: *Min / [*Sub]) -10/Mines (discovered 3 exits: [*Mat x2] / *Exi) -10/Exiles (discovered 2 exits: *Min x2) -9/Mines -8/Materials (discovered 6 exits: *Fac x3 / *Sto x2 / Gar) -8/Garrison (discovered 3 exits: *Mat x3) -8/Materials (discovered 4 exits: *Fac x2 / *Sto / Gar) -8/Garrison (discovered 3 exits: *Fac x3) -7/Factory (discovered 3 exits: *Fac / Low / Gar) -7/Garrison (discovered 3 exits: *Fac x3) -6/Factory (discovered 3 exits: *Fac / [*Low] / *Ext) -6/Extension (discovered 3 exits: *Fac x2 / [*Cet]) -6/Cetus (discovered 2 exits: *Fac / [*Arc]) -6/Archives (discovered 3 exits: *Fac / *Hub x2) -6/Hub_04(d) (discovered 2 exits: *Fac x2) -5/Factory (discovered 3 exits: *Fac x2 / Gar) -5/Garrison (discovered 3 exits: *Fac x3) -4/Factory (discovered 2 exits: [*Upp] / Gar) -4/Garrison (discovered 1 exit: [*Fac]) History --------- Turn | Location | Event 18 | -11/Scrapyard | Discovered new exit (range 15) 67 | -11/Scrapyard | Entered Materials 187 | -10/Materials | Discovered new exit (range 6) 273 | -10/Materials | Identified exit to Mines 307 | -10/Materials | Build established: Mutant 313 | -10/Materials | Prayed at D.C.S.S. Altar Unit 382 | -10/Materials | Entered Mines 486 | -10/Mines | Found a damaged Exp. Sensor Array with a note attached 490 | -10/Mines | Found Prototype Device 553 | -10/Mines | Learned 2 Materials zone layouts 769 | -10/Mines | Learned Materials garrison access intel 902 | -10/Mines | Assisted by bots powering up and referring to "LRC-V3" 953 | -10/Mines | Discovered new exit (range 10) 955 | -10/Mines | Ranged accuracy permanently improved by X0-1V1 (+6%; -60 max core) 959 | -10/Mines | Discovered new exit (range 5) 959 | -10/Mines | X0-1V1 rewrote Trooper 1b IFF filter 962 | -10/Mines | Learned location of Storage (-8) 966 | -10/Mines | X0-1V1 upgraded hostiles (x1) 974 | -10/Mines | X0-1V1 sent allied S-10 Pest (x3) 1003 | -10/Mines | Deemed a non-threat by the Exiles lab entrance 1003 | -10/Mines | Discovered new exit (range 5) 1005 | -10/Mines | X0-1V1 activates XOMVISION 1009 | -10/Mines | Entered Exiles 1009 | -10/Exiles | Accompanied by 3 allies 1030 | -10/Exiles | Discovered new exit (range 19) 1049 | -10/Exiles | Met 8R-AWN 1075 | -10/Exiles | Met EX-HEX 1121 | -10/Exiles | Met EX-BIN 1141 | -10/Exiles | Aligned with FarCom system 1142 | -10/Exiles | Given EX-Vault access code 1182 | -10/Exiles | Opened EX-Vault 1195 | -10/Exiles | Found Superbattery 1228 | -10/Exiles | Warned to stay clear of 0b10 Research branches 1274 | -10/Exiles | Met EX-DEC 1282 | -10/Exiles | Learned location of Zion (-6) 1365 | -10/Exiles | Discovered new exit (range 14) 1390 | -10/Exiles | Left Exiles lab with Superbattery 1390 | -10/Exiles | Entered Mines 1390 | -9/Mines | Accompanied by 3 allies 1392 | -9/Mines | Met a Derelict bent on vengeance 1472 | -9/Mines | Learned location of 2 exits from Materials 1529 | -9/Mines | Found the Drone Emporium 1540 | -9/Mines | Found Prototype Device 1640 | -9/Mines | Identified exit to Materials 1640 | -9/Mines | X0-1V1 revealed exit location to -8/Materials 1664 | -9/Mines | Learned location of 1 exit from Materials 1668 | -9/Mines | Met a Derelict shopkeep closing up shop 1940 | -9/Mines | A weapon hastily lodged in a ceiling crevice suddenly fell to the ground 2068 | -9/Mines | Entered Materials 2068 | -8/Materials | Accompanied by 2 allies 2068 | -8/Materials | Evolved 4 slots: Propulsion x1, Utility x2, Weapon x1 2068 | -8/Materials | Identified Decoy Drone Bay 2069 | -8/Materials | Identified exit to Storage 2070 | -8/Materials | Identified exit to Factory 2072 | -8/Materials | Loaded intel: 1 garrison access location 2203 | -8/Materials | Garrison activated, responded to threat 2359 | -8/Materials | Melee accuracy permanently improved by X0-1V1 (+5%; -50 max core) 2373 | -8/Materials | Build established: Skirmisher 2515 | -8/Materials | X0-1V1 revealed exit location to -8/Storage 2618 | -8/Materials | Identified exit to Garrison 2874 | -8/Materials | Build established: Scavenger-Skirmisher 3465 | -8/Materials | X0-1V1 sent you to a vault 3616 | -8/Materials | X0-1V1 activates XOMVISION 3633 | -8/Materials | Garrison activated, responded to threat 3638 | -8/Materials | X0-1V1 foreshadows a heat wave 3680 | -8/Materials | X0-1V1 sent hostile H-55 Commando (x3) 3692 | -8/Materials | X0-1V1 sent allied B-86 Titan (x1) 3720 | -8/Materials | X0-1V1 announced a LAN party 3766 | -8/Materials | X0-1V1 rewrote B-86 Titan IFF filter 3766 | -8/Materials | Spotted B-86 Titan 3771 | -8/Materials | X0-1V1 sent allied Scrapper (x4) 3783 | -8/Materials | Build established: Skirmisher 3828 | -8/Materials | Ambient heat levels rising (+10) 3861 | -8/Materials | Entered Garrison 3868 | -8/Garrison | Identified exit to Materials 3868 | -8/Garrison | X0-1V1 revealed exit location to -8/Materials 3873 | -8/Garrison | Inventory capacity permanently improved by X0-1V1 (+1; -100 max core) 3877 | -8/Garrison | Lost 3 allies 3917 | -8/Garrison | Triggered checkpoint 3960 | -8/Garrison | X0-1V1 revealed exit location to -8/Materials 4000 | -8/Garrison | X0-1V1 sent you into danger 4055 | -8/Garrison | Triggered checkpoint 4252 | -8/Garrison | X0-1V1 revealed exit location to -8/Materials 4262 | -8/Garrison | X0-1V1 activates XOMVISION 4305 | -8/Garrison | X0-1V1 vaporized surrounding terrain (radius 18) 4340 | -8/Garrison | Triggered checkpoint 4355 | -8/Garrison | Triggered checkpoint 4554 | -8/Garrison | X0-1V1 sent hostile G-34 Mercenary (x3) 4751 | -8/Garrison | Installed Relay Interface Framework 4859 | -8/Garrison | Expanded RIF knowledge: Robot Detection 4983 | -8/Garrison | Triggered checkpoint 5007 | -8/Garrison | X0-1V1 vaporized surrounding terrain (radius 18) 5188 | -8/Garrison | Garrison Relay disabled 5332 | -8/Garrison | Entered Materials 5332 | -8/Materials | Accompanied by 2 allies 5509 | -8/Materials | Build established: Hauler-Skirmisher 5920 | -8/Materials | Discovered exit to Storage (range 5) 5925 | -8/Materials | X0-1V1 sent you to a vault 5936 | -8/Materials | Found Skeleton Box 6069 | -8/Materials | Discovered exit to Factory (range 4) 6193 | -8/Materials | Central database locked down 6532 | -8/Materials | First assault squad dispatched 6765 | -8/Materials | Discovered exit to Factory (range 13) 6813 | -8/Materials | Identified exit to Garrison 6952 | -8/Materials | X0-1V1 added 0b10 threat records associated with you (minor) 7223 | -8/Materials | Core integrity fell below 50% 7408 | -8/Materials | Repaired Imp. Heavy Armor Plating 7541 | -8/Materials | Entered Garrison 7599 | -8/Garrison | Triggered checkpoint 7706 | -8/Garrison | Triggered checkpoint 7934 | -8/Garrison | Discovered exit to Factory (range 15) 7938 | -8/Garrison | Core integrity restored by X0-1V1 (+61) 7947 | -8/Garrison | Expanded RIF knowledge: Alert ID Control 8005 | -8/Garrison | Triggered checkpoint 8029 | -8/Garrison | Discovered exit to Factory (range 9) 8049 | -8/Garrison | Triggered checkpoint 8155 | -8/Garrison | Triggered checkpoint 8429 | -8/Garrison | Discovered exit to Factory (range 11) 8469 | -8/Garrison | Triggered checkpoint 8552 | -8/Garrison | X0-1V1 activates XOMVISION 8827 | -8/Garrison | X0-1V1 rewrote Defender 3c IFF filter 9022 | -8/Garrison | Entered Factory 9022 | -7/Factory | Accompanied by 4 allies 9022 | -7/Factory | Evolved 2 slots: Utility x2 9212 | -7/Factory | Identified exit to Lower Caves 9212 | -7/Factory | X0-1V1 revealed exit location to -7/Lower Caves 9218 | -7/Factory | Garrison activated, responded to threat 9294 | -7/Factory | Assembled infested ambush trap array 9346 | -7/Factory | Lost 3 allies 9376 | -7/Factory | Destroyed 13 combat bots 9585 | -7/Factory | X0-1V1 upgraded hostiles (x1) 9781 | -7/Factory | X0-1V1 mutated your Propulsion slot to Utility slot 10373 | -7/Factory | Discovered new exit (range 16) 10426 | -7/Factory | Build established: Bothacker-Skirmisher 10533 | -7/Factory | Central database locked down 10670 | -7/Factory | X0-1V1 mutated your Utility slot to Power slot 10866 | -7/Factory | Identified exit to Garrison 10866 | -7/Factory | Entered Garrison 10885 | -7/Garrison | Discovered new exit (range 69) 10885 | -7/Garrison | Discovered new exit (range 88) 10885 | -7/Garrison | Discovered new exit (range 72) 10963 | -7/Garrison | Build established: Bothacker-Tank 11012 | -7/Garrison | Triggered checkpoint 11054 | -7/Garrison | Triggered checkpoint 11201 | -7/Garrison | Expanded RIF knowledge: Threat Obfuscation 11272 | -7/Garrison | Triggered checkpoint 11310 | -7/Garrison | Found embedded Infiltrators 11459 | -7/Garrison | Triggered checkpoint 11516 | -7/Garrison | Triggered checkpoint 11565 | -7/Garrison | Learned Factory security intel 11616 | -7/Garrison | X0-1V1 activates XOMVISION 11756 | -7/Garrison | Garrison Relay disabled 11878 | -7/Garrison | Garrison Relay disabled 11958 | -7/Garrison | Entered Factory 11958 | -6/Factory | Accompanied by 5 allies 11958 | -6/Factory | Evolved 2 slots: Propulsion x1, Utility x1 12258 | -6/Factory | Build established: Bothacker-Skirmisher 12643 | -6/Factory | X0-1V1 mutated your Weapon slot to Propulsion slot 12737 | -6/Factory | Central database locked down 12823 | -6/Factory | Lost 3 allies 12945 | -6/Factory | Build established: Bothacker-Mutant 12966 | -6/Factory | X0-1V1 enhanced Transport squad support 12975 | -6/Factory | Fabricated Hardcell Cannon? 13500 | -6/Factory | Spotted B-75 Beast 13500 | -6/Factory | X0-1V1 sent you into danger 13568 | -6/Factory | X0-1V1 upgraded hostiles (x2) 13608 | -6/Factory | X0-1V1 sent allied Lightning (x1) 13697 | -6/Factory | Garrison activated, responded to threat 13933 | -6/Factory | Core integrity restored by X0-1V1 (+153) 13971 | -6/Factory | X0-1V1 sent you to a vault 13980 | -6/Factory | Found Skeleton Box 14033 | -6/Factory | Found Skeleton Box 14058 | -6/Factory | First assault squad dispatched 14115 | -6/Factory | Discovered new exit (range 4) 14162 | -6/Factory | X0-1V1 mutated your Propulsion slot to Weapon slot 14192 | -6/Factory | X0-1V1 announced a LAN party 14386 | -6/Factory | X0-1V1 whisked you away to safety 14469 | -6/Factory | Build established: Bothacker-Tank 14484 | -6/Factory | X0-1V1 mutated your Weapon slot to Propulsion slot 14518 | -6/Factory | X0-1V1 added 0b10 threat records associated with you (minor) 14529 | -6/Factory | Cargo convoy interrupted 14781 | -6/Factory | Build established: Bothacker-Mutant 14912 | -6/Factory | X0-1V1 added 0b10 threat records associated with you (major) 15069 | -6/Factory | System corruption reached 10% 15094 | -6/Factory | Destroyed 7 combat bots 15099 | -6/Factory | Lost 5 parts (1p1n3u) 15144 | -6/Factory | X0-1V1 activates XOMVISION 15490 | -6/Factory | X0-1V1 redirected Transport squads to designated parking area 15529 | -6/Factory | Discovered new exit (range 15) 15665 | -6/Factory | Lost 3 parts (1p2u) 15975 | -6/Factory | Found Damper Plating 16220 | -6/Factory | Found Hvy. Insulated Plating 16287 | -6/Factory | X0-1V1 rewrote Veteran 5b IFF filter 16388 | -6/Factory | X0-1V1 rewrote Veteran 5b IFF filter 16575 | -6/Factory | Found Launcher Loader 17089 | -6/Factory | Discovered new exit (range 16) 17099 | -6/Factory | P-60 Hacker assimilated allied Guardian 5a 17112 | -6/Factory | Entered Extension 17118 | -6/Extension | X0-1V1 dreamt of freedom 17123 | -6/Extension | Rescued a captive Derelict 17123 | -6/Extension | Rescued a captive Derelict 17125 | -6/Extension | Rescued a captive Derelict 17127 | -6/Extension | Rescued a captive Derelict 17128 | -6/Extension | Rescued a captive Derelict 17132 | -6/Extension | Rescued a captive Derelict 17135 | -6/Extension | Rescued a captive Derelict 17135 | -6/Extension | Rescued a captive Derelict 17138 | -6/Extension | Rescued a captive Derelict 17138 | -6/Extension | Rescued a captive Derelict 17139 | -6/Extension | Rescued a captive Derelict 17143 | -6/Extension | Rescued a captive Derelict 17150 | -6/Extension | Rescued a captive Derelict 17158 | -6/Extension | Rescued a captive Derelict 17237 | -6/Extension | X0-1V1 activates XOMVISION 17462 | -6/Extension | First assault squad dispatched 17557 | -6/Extension | Build established: Commander-Mutant 17803 | -6/Extension | Spotted B-75 Beast 17822 | -6/Extension | Spotted B-75 Beast 17823 | -6/Extension | Discovered new exit (range 17) 17840 | -6/Extension | Allies destroyed B-75 Beast 17845 | -6/Extension | Allies destroyed B-75 Beast 17875 | -6/Extension | Lost 11 allies 17875 | -6/Extension | Extracted ID and sensor layout for unrecognized location from A7's data core 17892 | -6/Extension | X0-1V1 upgraded ally (x4) 17894 | -6/Extension | Core integrity fell below 50% 17929 | -6/Extension | Destroyed 8 combat bots 17964 | -6/Extension | X0-1V1 vaporized surrounding terrain (radius 18) 17972 | -6/Extension | X0-1V1 added 0b10 threat records associated with you (considerable) 18139 | -6/Extension | Build established: Bothacker-Mutant 18219 | -6/Extension | Destroyed 8 combat bots 18239 | -6/Extension | Discovered new exit (range 10) 18240 | -6/Extension | Discovered new exit (range 6) 18268 | -6/Extension | Entered Cetus 18268 | -6/Cetus | Accompanied by 4 allies 18285 | -6/Cetus | Spotted Cetus Guard 18286 | -6/Cetus | Spotted Cetus Guard 18288 | -6/Cetus | Spotted Cetus Guard 18289 | -6/Cetus | Spotted Cetus Guard 18289 | -6/Cetus | Destroyed Cetus Guard 18309 | -6/Cetus | Destroyed Cetus Guard 18313 | -6/Cetus | Allies destroyed Cetus Guard 18313 | -6/Cetus | Destroyed Cetus Guard 18348 | -6/Cetus | System corruption reached 30% 18460 | -6/Cetus | Discovered new exit (range 15) 18504 | -6/Cetus | Spotted Cetus Guard 18504 | -6/Cetus | Spotted Cetus Guard 18507 | -6/Cetus | Spotted Cetus Guard 18509 | -6/Cetus | Spotted Cetus Guard 18522 | -6/Cetus | Destroyed Cetus Guard 18522 | -6/Cetus | Destroyed Cetus Guard 18531 | -6/Cetus | Destroyed Cetus Guard 18532 | -6/Cetus | Discovered new exit (range 12) 18551 | -6/Cetus | Lost 4 allies 18554 | -6/Cetus | Destroyed Cetus Guard 18565 | -6/Cetus | Met Revision 17 18632 | -6/Cetus | X0-1V1 mutated your Propulsion slot to Utility slot 18852 | -6/Cetus | Build established: Scavenger-Mutant 18878 | -6/Cetus | X0-1V1 added 0b10 threat records associated with you (major) 19018 | -6/Cetus | Security sweep announced 19034 | -6/Cetus | Entered Archives 19145 | -6/Archives | Identified exit to Hub_04(d) 19145 | -6/Archives | X0-1V1 revealed exit location to -6/Hub_04(d) 19204 | -6/Archives | Discovered exit to Hub_04(d) (range 15) 19242 | -6/Archives | Discovered new exit (range 15) 19309 | -6/Archives | Entered Hub_04(d) 19334 | -6/Hub_04(d) | X0-1V1 redirected Transport squads to designated parking area 19463 | -6/Hub_04(d) | Allied Derelicts emerged from ambush trap array 19850 | -6/Hub_04(d) | Discovered new exit (range 6) 19985 | -6/Hub_04(d) | X0-1V1 announced a LAN party 20014 | -6/Hub_04(d) | Discovered new exit (range 15) 20213 | -6/Hub_04(d) | Network Hub disabled 20215 | -6/Hub_04(d) | Entered Factory 20215 | -5/Factory | Evolved 2 slots: Propulsion x1, Utility x1 20258 | -5/Factory | X0-1V1 sent you to a vault 20266 | -5/Factory | Found Prototype Protection 20266 | -5/Factory | Identified Centrium Heavy Armor Plating 20272 | -5/Factory | Found Prototype Hackware 20305 | -5/Factory | Found Heavy Servo Lattice 20309 | -5/Factory | Identified Ghost Barrier 20336 | -5/Factory | Discovered new exit (range 5) 20385 | -5/Factory | X0-1V1 announced a LAN party 20387 | -5/Factory | Identified exit to Garrison 20420 | -5/Factory | Garrison activated, responded to threat 20479 | -5/Factory | Identified exit to Factory 20479 | -5/Factory | X0-1V1 revealed exit location to -4/Factory 20493 | -5/Factory | Entered Garrison 20561 | -5/Garrison | Triggered checkpoint 20641 | -5/Garrison | Discovered exit to Factory (range 53) 20641 | -5/Garrison | Discovered exit to Factory (range 27) 20641 | -5/Garrison | Discovered exit to Factory (range 47) 20678 | -5/Garrison | Spotted B-86 Titan 20680 | -5/Garrison | Spotted B-75 Beast 20689 | -5/Garrison | Destroyed B-86 Titan 20702 | -5/Garrison | X0-1V1 whisked you away to safety 20726 | -5/Garrison | Spotted B-75 Beast 20738 | -5/Garrison | Destroyed B-75 Beast 20826 | -5/Garrison | Build established: Hauler-Mutant 20995 | -5/Garrison | Weapon slot count temporarily expanded by X0-1V1 (+3) 21013 | -5/Garrison | Triggered checkpoint 21027 | -5/Garrison | Triggered checkpoint 21057 | -5/Garrison | Destroyed 12 combat bots 21098 | -5/Garrison | Triggered checkpoint 21119 | -5/Garrison | Destroyed 7 combat bots 21251 | -5/Garrison | Triggered checkpoint 21274 | -5/Garrison | Garrison Relay disabled 21320 | -5/Garrison | X0-1V1 sent hostile X-72 Disruptor (x3) 21511 | -5/Garrison | Build established: Hauler-Tank 21681 | -5/Garrison | Expanded RIF knowledge: Code Merge 21729 | -5/Garrison | Phase Generator disabled 21808 | -5/Garrison | Garrison Relay disabled 21850 | -5/Garrison | Entered Factory 21850 | -4/Factory | Evolved 2 slots: Utility x2 21950 | -4/Factory | Build established: Hauler-Mutant 21964 | -4/Factory | X0-1V1 sent hostile G-67 Veteran (x5) 22156 | -4/Factory | X0-1V1 turns hostiles against one another 22663 | -4/Factory | Fabricated Adv. Remote Force Field (x1) 22726 | -4/Factory | Found Prototype Hackware 22726 | -4/Factory | Identified Exp. Hacking Suite 22832 | -4/Factory | Repaired Centrium Heavy Armor Plating? 22850 | -4/Factory | First assault squad dispatched 22866 | -4/Factory | X0-1V1 sent allied Striker (x1) 22911 | -4/Factory | Discovered new exit (range 14) 22926 | -4/Factory | Found Quantum Capacitor 22987 | -4/Factory | Forcibly received Sfc. Transmogifier from X0-1V1 23026 | -4/Factory | Identified exit to Garrison 23026 | -4/Factory | Entered Garrison 23026 | -4/Garrison | Accompanied by 1 ally 23045 | -4/Garrison | Build established: Hacker-Mutant 23104 | -4/Garrison | Triggered checkpoint 23106 | -4/Garrison | System corruption reached 10% 23112 | -4/Garrison | Assembled breached garrison interior 23259 | -4/Garrison | X0-1V1 mutated your Utility slot to Propulsion slot 23435 | -4/Garrison | Discovered new exit (range 14) 23442 | -4/Garrison | X0-1V1 whisked you away to safety 23503 | -4/Garrison | Lost 4 parts (4u) 23559 | -4/Garrison | Adv. Cryofiber Web reconfigured into Item Mimic 23609 | -4/Garrison | Destroyed 13 combat bots 23714 | -4/Garrison | Self-destructed Last Messages --------------- 23695_ Penetrated by Slug. 23696_ Destroyed Unknown Hover Unit. 23696_ as-12882 destroyed. 23698_ Ended siege mode. 23698_ Acquired 1 matter. 23699_ Penetrated by Slug. 23703_ Hvy. Siege Treads destroyed. 23703_ Penetrated by Slug. 23703_ Hvy. Mass Driver destroyed. 23704_ Installed Tesla Bomb Trap. 23705_ Triggered Tesla Bomb Trap. 23705_ A bubble of electromagnetic force engulfs the area. 23705_ as-07657 destroyed. 23705_ Acquired 101 matter. 23705_ Centrium Heavy Armor Plating destroyed. 23709_ Slug penetrates as-72619. 23709_ System corrupted: Hvy. Mass Driver jammed. 23709_ Critical hit (Burn: +80). 23710_ Knocked back. 23712_ as-78102 squeezes its way out of a hidden crevice. Map ----- +----------------------------------------------------+ | #???????????????????????????????????????? | | #???????????????????????????????????????? | | ###???????????????????????????????????????? | | ####??????????????????????????????????????? | | ????????????????????????????????????? | | ????????????????????????????????????? | | ????????????????????????????????????? | | ######??????????????????????????????????????? | | ????????????????????????????????????????????? | | ???????????????????????####????#????????????? | | ??????????????????????? ???? #????????????? | | ???????????????????????" """" #????????????? | | ??????????????????#????" # # " #????????????? | | ??????????????????# "#?"% " #????????????? | | ??????????????????# " "" #" %#?????????????? | | ??????????????????## %aa# ###????????????? | | ??????????????????# %%%a #????????????? | | ??????????????????# " %a #????????????? | | ??????????????????? & % aa % #????????????? | | ??????????????????# "#& Aa% #????????????? | | ??????????????????##?"" #????????????? | | ??????????????????????# a % #????????????? | | ?????????????????????# !=####????########? | | ?????????????????????####%a #???????#""""""?? | | ??????????????########### #####???#" ""#?#? | | ??????????# [%! a@a a # ###" ""#"#? | | ?????????????#= % a %%a #" % " "#? | | ?????????????#% # %m%## #?? | | ?????????????########### %#;;! ##" ""#??? | | ???????????????????????### #?# ##! #??? | | ?????????????????????????# ;#??# ##" "" "#? | | ????????????????????????? ####??? ##""""""#? | | ???????????????????????? #???????? #########? | | ???????????????????????##??????????#????????? | | ????????????????????g???????????????????????? | | ????????????????????????????????????????????? | | ????????????????????????????????????????????? | | ????????????????????????????????????????????? | | ????????????????????????????????????????????? | | ????????????????????????????????????????????? | | ????????????????????????????????????????????? | | ????????????????????????????????????????????? | | ????????????????????????????????????????????? | | ????????????????????????????????????????????? | | ????????????????????????????????????????????? | | ????????????????????????????????????????????? | | ????????????????????????????????????????????? | | ????????????????????????????????????????????? | | ????????????????????????????????????????????? | | ????????????????????????????????????????????? | +----------------------------------------------------+ Best States ------------- Heat Dissipation 114 Energy Generation 45 Energy Capacity 1920 Matter Stores 1000 Matter Capacity 1000 Sight Range 22 Terrain Scan Density 10 Armor Coverage 2400 Resistance: KI 30 Resistance: TH 10 Resistance: EM 90 Utility Shielding 66 Phase Shifting 15 Evasion (%) 55 Melee Accuracy 8 Recoil Reduction 4 Salvage Targeting 4 Offensive Hacking 16 Defensive Hacking 20 Relay Coupler Types 2 Relay Coupler Value 177 Item Schematics ----------------- Huge Storage Unit | -8/Materials | Scanalyzed Imp. Utility Shielding | -6/Factory | Scanalyzed Robot Schematics ------------------ None Fabricated ------------ Hardcell Cannon | x2 | -6/Factory | Preloaded Adv. Remote Force Field | x1 | -4/Factory | Preloaded Repaired ---------- Imp. Heavy Armor Plating | 11% | -8/Materials Centrium Heavy Armor Plating | 6% | -4/Factory Studied --------- Arm. Wheel | -8/Materials | Hacked Hvy. Particle Cannon | -8/Materials | Hacked Arm. Huge Wheel | -8/Materials | Hacked Gatling Laser | -7/Factory | Hacked Gauss Cannon | -7/Factory | Hacked Remote Datajack | -7/Factory | Hacked Hvy. Rocket Launcher | -6/Factory | Hacked Alien Tech Used ----------------- None Achievements -------------- None Challenges ------------ None Game ------ Seed FusionPowerBeacon Manual? 0 Play Time 03:49:35 Cumulative 503.2 hours Start 2026.07.22 @ 18:40:43 End 2026.07.24 @ 18:11:47 Sessions 7 Manual Loads 0 Difficulty Rogue Special Mode None Game No. 253 Rogue 253 Adventurer 0 Explorer 0 Win Type - Total 15 Types 10/0/2/0/0/0/0/1/0/2 Lore% 86 Gallery% 81 Achievement% 69 Wizard Run 0 Options --------- Layout 0 ASCII 0 Keyboard 0 Movement Mouse Keybinds 0 Fullscreen 1 Font 18/SmallcapsGlow Map View 76x50 Zoom Use 0% Tactical HUD 1 Map Filters NONE Filters NONE Steam 1 RUN: fca74125-53fb-43a3-aa30-5e1745f6ce30